fUSD/lending_fUSD_20250806
["ID","MTS","AMOUNT","RATE_DAILY","PERIOD"]
[377551681,1754441451906,-400.0,0.00035616,14]
[377551682,1754441451915,-997.7,0.00035616,14]
[377551683,1754441451927,-424.18,0.00035616,14]
[377551684,1754441451938,-400.0,0.00035616,14]
[377551685,1754441451947,-1285.31,0.00035616,14]
[377551686,1754441451956,-501.13,0.00035616,14]
[377551687,1754441451966,-400.0,0.00035616,14]
[377551688,1754441451975,-762.45,0.00035616,14]
[377551689,1754441451984,-400.0,0.00035616,14]
[377551690,1754441451994,-400.0,0.00035616,14]
[377551691,1754441452003,-400.0,0.00035616,14]
[377551692,1754441452013,-666.76,0.00035616,14]
[377551693,1754441452023,-3144.17,0.00035616,14]
[377551694,1754441452031,-500.0,0.00035616,14]
[377551695,1754441452042,-619.76,0.00035616,14]
[377551696,1754441452051,-400.0,0.00035616,14]
[377551697,1754441452061,-1798.71,0.00035616,14]
[377551698,1754441452071,-1281.53,0.00035616,14]
[377551699,1754441452081,-400.0,0.00035616,14]
[377551700,1754441452091,-400.0,0.00035616,14]
[377551701,1754441452100,-400.0,0.00035616,14]
[377551702,1754441452110,-500.0,0.00035616,14]
[377551703,1754441452119,-500.0,0.00035616,14]
[377551704,1754441452129,-477.03,0.00035616,14]
[377551705,1754441452140,-500.0,0.00035616,14]
[377551706,1754441452149,-722.2,0.00035616,14]
[377551707,1754441452158,-500.0,0.00035616,14]
[377551708,1754441452167,-500.0,0.00035616,14]
[377551709,1754441452177,-400.0,0.00035616,14]
[377551710,1754441452186,-2901.82,0.00035616,14]
[377551711,1754441452195,-1561.04,0.00035616,14]
[377551712,1754441452205,-404.98,0.00035616,14]
[377551713,1754441452214,-400.0,0.00035616,14]
[377551714,1754441452223,-2115.61,0.00035616,14]
[377551715,1754441452233,-400.0,0.00035616,14]
[377551716,1754441452242,-819.59,0.00035616,14]
[377551717,1754441452252,-1101.95,0.00035616,14]
[377551718,1754441452261,-400.0,0.00035616,14]
[377551719,1754441452270,-400.0,0.00035616,14]
[377551720,1754441452279,-400.0,0.00035616,14]
[377551721,1754441452288,-644.6,0.00035616,14]
[377551722,1754441452299,-933.92,0.00035616,14]
[377551723,1754441452308,-400.0,0.00035616,14]
[377551724,1754441452318,-400.0,0.00035616,14]
[377551725,1754441452327,-1062.27,0.00035616,14]
[377551726,1754441452336,-400.0,0.00035616,14]
[377551727,1754441452346,-1975.92,0.00035616,14]
[377551728,1754441452355,-166.684334,0.00035616,14]
[377551729,1754441452364,-2033.34,0.00035616,14]
[377551730,1754441452374,-1995.46,0.00035616,14]
[377551731,1754441452383,-400.0,0.00035616,14]
[377551732,1754441452393,-2205.56,0.00035616,14]
[377551733,1754441452402,-400.0,0.00035616,14]
[377551734,1754441452411,-1249.96,0.00035616,14]
[377551735,1754441452420,-400.0,0.00035616,14]
[377551736,1754441452430,-2118.37,0.00035616,14]
[377551737,1754441452439,-400.0,0.00035616,14]
[377551738,1754441452449,-938.93,0.00035616,14]
[377551739,1754441452458,-400.0,0.00035616,14]
[377551740,1754441452467,-1975.95,0.00035616,14]
[377551741,1754441452477,-400.0,0.00035616,14]
[377551742,1754441452486,-400.0,0.00035616,14]
[377551743,1754441452497,-1600.17,0.00035616,14]
[377551744,1754441452507,-400.0,0.00035616,14]
[377551745,1754441452517,-513.71,0.00035616,14]
[377551746,1754441452527,-2653.63,0.00035616,14]
[377551747,1754441452536,-1457.15,0.00035616,14]
[377551748,1754441452546,-442.2,0.00035616,14]
[377551749,1754441452555,-1048.68,0.00035616,14]
[377551750,1754441452564,-400.0,0.00035616,14]
[377551751,1754441452573,-802.14,0.00035616,14]
[377551752,1754441452583,-400.0,0.00035616,14]
[377551753,1754441452592,-400.0,0.00035616,14]
[377551754,1754441452601,-1831.42,0.00035616,14]
[377551755,1754441452611,-400.0,0.00035616,14]
[377551756,1754441452620,-2563.76,0.00035616,14]
[377551757,1754441452629,-1012.37,0.00035616,14]
[377551758,1754441452638,-400.0,0.00035616,14]
[377551759,1754441452647,-1092.11,0.00035616,14]
[377551760,1754441452657,-400.0,0.00035616,14]
[377551761,1754441452666,-400.0,0.00035616,14]
[377551762,1754441452676,-400.0,0.00035616,14]
[377551763,1754441452686,-976.43,0.00035616,14]
[377551764,1754441452696,-1793.59,0.00035616,14]
[377551765,1754441452705,-2925.51,0.00035616,14]
[377551766,1754441452714,-400.0,0.00035616,14]
[377551767,1754441452724,-633.85,0.00035616,14]
[377551768,1754441452733,-432.74,0.00035616,14]
[377551769,1754441452743,-400.0,0.00035616,14]
[377551770,1754441452752,-482.25,0.00035616,14]
[377551771,1754441452762,-400.0,0.00035616,14]
[377551772,1754441452771,-789.29,0.00035616,14]
[377551773,1754441452780,-1260.09,0.00035616,14]
[377551774,1754441452789,-400.0,0.00035616,14]
[377551775,1754441452800,-432.63,0.00035616,14]
[377551776,1754441452809,-1520.6,0.00035616,14]
[377551777,1754441452818,-400.0,0.00035616,14]
[377551778,1754441452828,-400.0,0.00035616,14]
[377551779,1754441452837,-2128.76,0.00035616,14]
[377551780,1754441452849,-400.0,0.00035616,14]
[377551781,1754441452858,-400.0,0.00035616,14]
[377551782,1754441452867,-803.75,0.00035616,14]
[377551783,1754441452876,-562.66,0.00035616,14]
[377551784,1754441452886,-500.43,0.00035616,14]
[377551785,1754441452895,-400.0,0.00035616,14]
[377551786,1754441452906,-1380.22,0.00035616,14]
[377551787,1754441452915,-1073.31,0.00035616,14]
[377551788,1754441452924,-400.0,0.00035616,14]
[377551789,1754441452935,-400.0,0.00035616,14]
[377551790,1754441452944,-400.0,0.00035616,14]
[377551791,1754441452953,-630.26,0.00035616,14]
[377551792,1754441452962,-990.2,0.00035616,14]
[377551793,1754441452971,-400.0,0.00035616,14]
[377551794,1754441452981,-1056.67,0.00035616,14]
[377551795,1754441452990,-1352.62,0.00035616,14]
[377551796,1754441452999,-400.0,0.00035616,14]
[377551797,1754441453008,-2203.22,0.00035616,14]
[377551798,1754441453018,-402.27,0.00035616,14]
[377551799,1754441453027,-400.0,0.00035616,14]
[377551800,1754441453036,-400.0,0.00035616,14]
[377551801,1754441453045,-457.26,0.00035616,14]
[377551802,1754441453054,-426.72,0.00035616,14]
[377551803,1754441453064,-400.0,0.00035616,14]
[377551804,1754441453074,-1403.98,0.00035616,14]
[377551805,1754441453083,-401.02134702,0.00035616,14]
[377551806,1754441453093,-789.13,0.00035616,14]
[377551807,1754441453102,-400.0,0.00035616,14]
[377551808,1754441453113,-1233.25,0.00035616,14]
[377551809,1754441453123,-565.56,0.00035616,14]
[377551810,1754441453133,-1584.81,0.00035616,14]
[377551811,1754441453142,-1184.11,0.00035616,14]
[377551812,1754441453152,-400.0,0.00035616,14]
[377551813,1754441453162,-694.37,0.00035616,14]
[377551814,1754441453171,-400.0,0.00035616,14]
[377551815,1754441453182,-1738.04,0.00035616,14]
[377551816,1754441453191,-400.0,0.00035616,14]
[377551817,1754441453201,-400.0,0.00035616,14]
[377551818,1754441453211,-400.0,0.00035616,14]
[377551819,1754441453220,-460.65,0.00035616,14]
[377551820,1754441453230,-400.0,0.00035616,14]
[377551821,1754441453239,-400.0,0.00035616,14]
[377551822,1754441453249,-400.0,0.00035616,14]
[377551823,1754441453258,-400.0,0.00035616,14]
[377551824,1754441453268,-400.0,0.00035616,14]
[377551825,1754441453278,-400.0,0.00035616,14]
[377551826,1754441453287,-1939.96,0.00035616,14]
[377551827,1754441453299,-400.0,0.00035616,14]
[377551828,1754441453309,-2037.51,0.00035616,14]
[377551829,1754441453318,-565.74,0.00035616,14]
[377551830,1754441453327,-1516.12,0.00035616,14]
[377551831,1754441453337,-627.58,0.00035616,14]
[377551832,1754441453346,-2234.11,0.00035616,14]
[377551833,1754441453356,-400.0,0.00035616,14]
[377551834,1754441453366,-400.0,0.00035616,14]
[377551835,1754441453375,-400.0,0.00035616,14]
[377551836,1754441453384,-400.0,0.00035616,14]
[377551837,1754441453394,-400.0,0.00035616,14]
[377551838,1754441453404,-404.81,0.00035616,14]
[377551839,1754441453413,-400.0,0.00035616,14]
[377551840,1754441453423,-448.90556337,0.00035616,14]
[377551841,1754441453432,-400.0,0.00035616,14]
[377551842,1754441453442,-955.74,0.00035616,14]
[377551843,1754441453451,-400.0,0.00035616,14]
[377551844,1754441453461,-400.0,0.00035616,14]
[377551845,1754441453471,-2122.46,0.00035616,14]
[377551846,1754441453480,-400.0,0.00035616,14]
[377551847,1754441453491,-607.41,0.00035616,14]
[377551848,1754441453501,-497.75,0.00035616,14]
[377551849,1754441453511,-1770.78,0.00035616,14]
[377551850,1754441453520,-400.0,0.00035616,2]
[377551851,1754441453530,-847.8,0.00035616,14]
[377551852,1754441453539,-469.6,0.00035616,14]
[377551853,1754441453549,-400.0,0.00035616,14]
[377551854,1754441453559,-400.0,0.00035616,14]
[377551855,1754441453569,-400.0,0.00035616,14]
[377551856,1754441453578,-598.66,0.00035616,14]
[377551857,1754441453588,-400.0,0.00035616,14]
[377551858,1754441453598,-400.0,0.00035616,14]
[377551859,1754441453607,-400.0,0.00035616,14]
[377551860,1754441453617,-400.0,0.00035616,14]
[377551861,1754441453626,-400.0,0.00035616,14]
[377551862,1754441453636,-400.0,0.00035616,14]
[377551863,1754441453646,-400.0,0.00035616,14]
[377551864,1754441453656,-400.0,0.00035616,14]
[377551865,1754441453666,-770.15,0.00035616,14]
[377551866,1754441453676,-627.63,0.00035616,14]
[377551867,1754441453686,-1138.8,0.00035616,14]
[377551868,1754441453695,-2372.63,0.00035616,14]
[377551869,1754441453705,-400.0,0.00035616,14]
[377551870,1754441453714,-400.0,0.00035616,14]
[377551871,1754441453724,-400.0,0.00035616,14]
[377551872,1754441453734,-1333.85,0.00035616,14]
[377551873,1754441453743,-500.0,0.00035616,14]
[377551874,1754441453753,-500.0,0.00035616,14]
[377551875,1754441453763,-500.0,0.00035616,14]
[377551876,1754441453773,-209.89354854,0.00035616,14]
[377551877,1754441453783,-400.0,0.00035616,14]
[377551878,1754441453793,-856.89,0.00035616,14]
[377551879,1754441453803,-400.0,0.00035616,14]
[377551880,1754441453813,-709.28,0.00035616,14]
[377551881,1754441453823,-707.53,0.00035616,14]
[377551882,1754441453833,-400.0,0.00035616,14]
[377551883,1754441453845,-1765.45,0.00035616,14]
[377551884,1754441453857,-1904.13,0.00035616,14]
[377551885,1754441453867,-400.0,0.00035616,14]
[377551886,1754441453878,-1788.33,0.00035616,14]
[377551887,1754441453889,-2204.89,0.00035616,14]
[377551888,1754441453899,-400.0,0.00035616,14]
[377551889,1754441453909,-1127.01,0.00035616,14]
[377551890,1754441453919,-598.14,0.00035616,14]
[377551891,1754441453932,-400.0,0.00035616,14]
[377551892,1754441453943,-400.0,0.00035616,14]
[377551893,1754441453953,-400.0,0.00035616,14]
[377551894,1754441453963,-400.0,0.00035616,14]
[377551895,1754441453974,-1408.2,0.00035616,14]
[377551896,1754441453984,-400.0,0.00035616,14]
[377551897,1754441453995,-400.0,0.00035616,14]
[377551898,1754441454005,-511.36333962,0.00035616,14]
[377551899,1754441454016,-400.0,0.00035616,14]
[377551900,1754441454026,-400.0,0.00035616,14]
[377551901,1754441454037,-400.0,0.00035616,14]
[377551902,1754441454048,-400.0,0.00035616,14]
[377551903,1754441454058,-1254.83,0.00035616,14]
[377551904,1754441454068,-400.0,0.00035616,2]
[377551905,1754441454079,-400.80203651,0.00035616,14]
[377551906,1754441454090,-1977.88,0.00035616,14]
[377551907,1754441454101,-1538.19,0.00035616,14]
[377551908,1754441454111,-400.0,0.00035616,14]
[377551909,1754441454122,-2680.41,0.00035616,14]
[377551910,1754441454132,-400.0,0.00035616,14]
[377551911,1754441454142,-400.0,0.00035616,14]
[377551912,1754441454152,-1442.84,0.00035616,14]
[377551913,1754441454163,-400.0,0.00035616,14]
[377551914,1754441454173,-500.0,0.00035616,10]
[377551915,1754441454183,-400.0,0.00035616,14]
[377551916,1754441454192,-400.0,0.00035616,14]
[377551917,1754441454203,-400.0,0.00035616,14]
[377551918,1754441454213,-400.0,0.00035616,14]
[377551919,1754441454224,-693.3,0.00035616,14]
[377551920,1754441454234,-876.81,0.00035616,14]
[377551921,1754441454245,-955.6,0.00035616,14]
[377551922,1754441454256,-400.0,0.00035616,14]
[377551923,1754441454266,-400.0,0.00035616,14]
[377551924,1754441454276,-400.0,0.00035616,14]
[377551925,1754441454286,-400.0,0.00035616,14]
[377551926,1754441454296,-400.0,0.00035616,14]
[377551927,1754441454306,-1823.14,0.00035616,14]
[377551928,1754441454317,-400.0,0.00035616,14]
[377551929,1754441454328,-2884.12,0.00035616,14]
[377551930,1754441454338,-1560.96,0.00035616,14]
[377551931,1754441454348,-1069.92,0.00035616,14]
[377551932,1754441454359,-400.0,0.00035616,14]
[377551933,1754441454370,-400.0,0.00035616,14]
[377551934,1754441454380,-400.0,0.00035616,14]
[377551935,1754441454391,-400.0,0.00035616,14]
[377551936,1754441454402,-1917.59,0.00035616,14]
[377551937,1754441454413,-400.0,0.00035616,14]
[377551938,1754441454422,-400.0,0.00035616,14]
[377551939,1754441454433,-400.0,0.00035616,14]
[377551940,1754441454444,-707.78,0.00035616,14]
[377551941,1754441454455,-3236.76,0.00035616,14]
[377551942,1754441454466,-400.0,0.00035616,14]
[377551943,1754441454476,-400.0,0.00035616,14]
[377551944,1754441454486,-728.45,0.00035616,14]
[377551945,1754441454497,-661.87,0.00035616,14]
[377551946,1754441454508,-400.0,0.00035616,14]
[377551947,1754441454519,-1041.19,0.00035616,14]
[377551948,1754441454530,-1383.65,0.00035616,14]
[377551949,1754441454539,-1777.11,0.00035616,14]
[377551950,1754441454550,-400.0,0.00035616,14]
[377551951,1754441454560,-1334.95,0.00035616,14]
[377551952,1754441454570,-1015.03,0.00035616,14]
[377551953,1754441454580,-968.38,0.00035616,14]
[377551954,1754441454590,-635.53,0.00035616,14]
[377551955,1754441454600,-400.0,0.00035616,14]
[377551956,1754441454610,-2081.63,0.00035616,14]
[377551957,1754441454619,-400.0,0.00035616,14]
[377551958,1754441454629,-423.76,0.00035616,14]
[377551959,1754441454638,-400.0,0.00035616,14]
[377551960,1754441454648,-400.0,0.00035616,14]
[377551961,1754441454657,-895.51,0.00035616,14]
[377551962,1754441454668,-400.0,0.00035616,14]
[377551963,1754441454678,-11435.58,0.00035616,14]
[377551964,1754441454688,-1449.56,0.00035616,14]
[377551965,1754441454698,-400.0,0.00035616,14]
[377551966,1754441454708,-1515.54,0.00035616,14]
[377551967,1754441454718,-330.53496325,0.00035616,14]
[377551968,1754441454728,-2431.68,0.00035616,14]
[377551969,1754441454738,-400.0,0.00035616,14]
[377551970,1754441454748,-1291.07,0.00035616,14]
[377551971,1754441454758,-400.0,0.00035616,14]
[377551972,1754441454768,-625.39,0.00035616,14]
[377551973,1754441454778,-1562.78,0.00035616,14]
[377551974,1754441454787,-2052.06,0.00035616,14]
[377551975,1754441454797,-537.49,0.00035616,14]
[377551976,1754441454808,-400.0,0.00035616,14]
[377551977,1754441454817,-400.0,0.00035616,14]
[377551978,1754441454828,-597.53,0.00035616,14]
[377551979,1754441454838,-791.02,0.00035616,14]
[377551980,1754441454851,-1585.35,0.00035616,14]
[377551981,1754441454860,-400.0,0.00035616,14]
[377551982,1754441454870,-400.0,0.00035616,14]
[377551983,1754441454880,-400.0,0.00035616,14]
[377551984,1754441454890,-2032.78,0.00035616,14]
[377551985,1754441454900,-518.92,0.00035616,14]
[377551986,1754441454910,-400.0,0.00035616,14]
[377551987,1754441454922,-400.0,0.00035616,14]
[377551988,1754441454932,-400.0,0.00035616,14]
[377551989,1754441454942,-400.0,0.00035616,14]
[377551990,1754441454952,-220.85947563,0.00035616,14]
[377551991,1754441454962,-400.0,0.00035616,14]
[377551992,1754441454972,-400.0,0.00035616,14]
[377551993,1754441454982,-1104.87,0.00035616,14]
[377551994,1754441454991,-400.0,0.00035616,14]
[377551995,1754441455002,-400.0,0.00035616,14]
[377551996,1754441455013,-1242.92,0.00035616,14]
[377551997,1754441455023,-619.07,0.00035616,14]
[377551998,1754441455033,-400.0,0.00035616,14]
[377551999,1754441455043,-400.0,0.00035616,14]
[377552000,1754441455053,-400.0,0.00035616,14]
[377552001,1754441455063,-1684.18,0.00035616,14]
[377552002,1754441455073,-1981.92,0.00035616,14]
[377552003,1754441455083,-400.0,0.00035616,14]
[377552004,1754441455094,-400.0,0.00035616,14]
[377552005,1754441455104,-2169.59,0.00035616,14]
[377552006,1754441455114,-400.0,0.00035616,14]
[377552007,1754441455125,-400.0,0.00035616,14]
[377552008,1754441455136,-400.0,0.00035616,14]
[377552009,1754441455147,-1194.44,0.00035616,14]
[377552010,1754441455156,-816.65,0.00035616,14]
[377552011,1754441455166,-400.0,0.00035616,14]
[377552012,1754441455176,-400.0,0.00035616,14]
[377552013,1754441455186,-2030.71,0.00035616,14]
[377552014,1754441455196,-400.0,0.00035616,14]
[377552015,1754441455206,-400.0,0.00035616,14]
[377552016,1754441455216,-400.0,0.00035616,14]
[377552017,1754441455227,-400.0,0.00035616,14]
[377552018,1754441455237,-1178.18,0.00035616,14]
[377552019,1754441455247,-1878.43,0.00035616,14]
[377552020,1754441455258,-1180.71,0.00035616,14]
[377552021,1754441455268,-400.0,0.00035616,14]
[377552022,1754441455280,-400.0,0.00035616,14]
[377552023,1754441455290,-400.0,0.00035616,14]
[377552024,1754441455301,-400.0,0.00035616,14]
[377552025,1754441455312,-400.0,0.00035616,14]
[377552026,1754441455322,-400.0,0.00035616,14]
[377552027,1754441455332,-1574.33,0.00035616,14]
[377552028,1754441455342,-3028.42,0.00035616,14]
[377552029,1754441455351,-400.0,0.00035616,14]
[377552030,1754441455362,-446.11,0.00035616,14]
[377552031,1754441455372,-400.0,0.00035616,14]
[377552032,1754441455383,-400.0,0.00035616,14]
[377552033,1754441455393,-400.0,0.00035616,14]
[377552034,1754441455403,-529.01,0.00035616,14]
[377552035,1754441455412,-1063.33,0.00035616,14]
[377552036,1754441455422,-799.23,0.00035616,14]
[377552037,1754441455432,-1294.1,0.00035616,14]
[377552038,1754441455441,-400.0,0.00035616,14]
[377552039,1754441455451,-2197.22,0.00035616,14]
[377552040,1754441455461,-758.25,0.00035616,14]
[377552041,1754441455471,-400.0,0.00035616,14]
[377552042,1754441455481,-2890.04,0.00035616,2]
[377552043,1754441455490,-457.58,0.00035616,14]
[377552044,1754441455500,-404.24,0.00035616,14]
[377552045,1754441455511,-1085.43,0.00035616,14]
[377552046,1754441455521,-2675.69,0.00035616,14]
[377552047,1754441455531,-400.0,0.00035616,14]
[377552048,1754441455541,-400.0,0.00035616,14]
[377552049,1754441455551,-2837.9,0.00035616,14]
[377552050,1754441455562,-2220.62,0.00035616,14]
[377552051,1754441455572,-400.0,0.00035616,14]
[377552052,1754441455582,-400.0,0.00035616,14]
[377552053,1754441455592,-400.0,0.00035616,14]
[377552054,1754441455602,-400.0,0.00035616,14]
[377552055,1754441455611,-400.0,0.00035616,14]
[377552056,1754441455621,-1267.78,0.00035616,14]
[377552057,1754441455631,-400.0,0.00035616,14]
[377552058,1754441455641,-740.7,0.00035616,14]
[377552059,1754441455650,-400.0,0.00035616,14]
[377552060,1754441455660,-1086.39,0.00035616,14]
[377552061,1754441455670,-3842.03,0.00035616,14]
[377552062,1754441455680,-2522.97,0.00035616,14]
[377552063,1754441455690,-636.11,0.00035616,14]
[377552064,1754441455699,-692.62,0.00035616,14]
[377552065,1754441455709,-400.0,0.00035616,14]
[377552066,1754441455719,-400.0,0.00035616,14]
[377552067,1754441455729,-400.0,0.00035616,14]
[377552068,1754441455739,-400.0,0.00035616,14]
[377552069,1754441455749,-400.0,0.00035616,14]
[377552070,1754441455759,-441.64,0.00035616,14]
[377552071,1754441455769,-400.0,0.00035616,14]
[377552072,1754441455779,-400.0,0.00035616,14]
[377552073,1754441455789,-1626.48,0.00035616,14]
[377552074,1754441455800,-400.0,0.00035616,14]
[377552075,1754441455810,-2929.44,0.00035616,14]
[377552076,1754441455820,-400.0,0.00035616,14]
[377552077,1754441455831,-400.0,0.00035616,14]
[377552078,1754441455841,-514.32,0.00035616,14]
[377552079,1754441455855,-1802.79,0.00035616,14]
[377552080,1754441455865,-2883.1,0.00035616,14]
[377552081,1754441455875,-1733.57,0.00035616,14]
[377552082,1754441455885,-814.92,0.00035616,14]
[377552083,1754441455896,-400.0,0.00035616,14]
[377552084,1754441455906,-1258.3,0.00035616,14]
[377552085,1754441455915,-400.0,0.00035616,14]
[377552086,1754441455926,-1258.3,0.00035616,14]
[377552087,1754441455936,-617.9,0.00035616,14]
[377552088,1754441455946,-1258.3,0.00035616,14]
[377552089,1754441455956,-1258.3,0.00035616,14]
[377552090,1754441455968,-1258.3,0.00035616,14]
[377552091,1754441455977,-1258.3,0.00035616,14]
[377552092,1754441455987,-1258.3,0.00035616,14]
[377552093,1754441455996,-1258.3,0.00035616,14]
[377552094,1754441456007,-648.4,0.00035616,14]
[377552095,1754441456017,-1258.3,0.00035616,14]
[377552096,1754441456027,-1258.3,0.00035616,14]
[377552097,1754441456037,-1258.3,0.00035616,14]
[377552098,1754441456048,-1258.3,0.00035616,14]
[377552099,1754441456058,-1258.3,0.00035616,14]
[377552100,1754441456069,-1258.3,0.00035616,14]
[377552101,1754441456079,-1258.3,0.00035616,14]
[377552102,1754441456089,-1258.3,0.00035616,14]
[377552103,1754441456100,-1258.3,0.00035616,14]
[377552104,1754441456110,-400.0,0.00035616,14]
[377552105,1754441456121,-1258.3,0.00035616,14]
[377552106,1754441456138,-1258.3,0.00035616,14]
[377552107,1754441456150,-400.0,0.00035616,14]
[377552108,1754441456163,-1567.76,0.00035616,14]
[377552109,1754441456643,-1258.3,0.00035616,14]
[377552110,1754441456654,-810.92,0.00035616,14]
[377552111,1754441456664,-1258.3,0.00035616,14]
[377552112,1754441456674,-1258.3,0.00035616,14]
[377552113,1754441456684,-717.54,0.00035616,14]
[377552114,1754441456695,-1258.3,0.00035616,14]
[377552115,1754441456706,-446.34,0.00035616,14]
[377552116,1754441456718,-1258.5365948,0.00035616,14]
[377552117,1754441456727,-2041.42,0.00035616,14]
[377552118,1754441456737,-400.0,0.00035616,14]
[377552119,1754441456747,-465.12,0.00035616,14]
[377552120,1754441456757,-400.0,0.00035616,14]
[377552121,1754441456766,-1676.56,0.00035616,14]
[377552122,1754441456776,-400.0,0.00035616,14]
[377552123,1754441456785,-400.0,0.00035616,14]
[377552124,1754441456796,-2264.3,0.00035616,14]
[377552125,1754441456806,-400.0,0.00035616,14]
[377552126,1754441456815,-2481.83,0.00035616,14]
[377552127,1754441456825,-769.68,0.00035616,14]
[377552128,1754441456835,-1743.96,0.00035616,14]
[377552129,1754441456848,-1190.95,0.00035616,14]
[377552130,1754441456860,-2618.0,0.00035616,14]
[377552131,1754441456873,-1474.73,0.00035616,14]
[377552132,1754441456883,-400.0,0.00035616,14]
[377552133,1754441456895,-1715.04,0.00035616,14]
[377552134,1754441456905,-400.0,0.00035616,14]
[377552135,1754441456915,-400.0,0.00035616,14]
[377552136,1754441456926,-400.0,0.00035616,14]
[377552137,1754441456936,-400.0,0.00035616,14]
[377552138,1754441456946,-1322.37,0.00035616,14]
[377552139,1754441456956,-400.0,0.00035616,14]
[377552140,1754441456967,-500.0,0.00035616,14]
[377552141,1754441456978,-500.0,0.00035616,14]
[377552142,1754441456989,-500.0,0.00035616,14]
[377552143,1754441456999,-500.0,0.00035616,14]
[377552144,1754441457010,-500.0,0.00035616,14]
[377552145,1754441457020,-500.0,0.00035616,14]
[377552146,1754441457031,-2278.76,0.00035616,14]
[377552147,1754441457042,-500.0,0.00035616,14]
[377552148,1754441457053,-400.0,0.00035616,14]
[377552149,1754441457062,-500.0,0.00035616,14]
[377552150,1754441457072,-500.0,0.00035616,14]
[377552151,1754441457082,-756.76,0.00035616,14]
[377552152,1754441457092,-400.0,0.00035616,14]
[377552153,1754441457102,-400.0,0.00035616,14]
[377552154,1754441457112,-400.0,0.00035616,14]
[377552155,1754441457122,-500.0,0.00035616,14]
[377552156,1754441457131,-1948.23,0.00035616,14]
[377552157,1754441457141,-1815.48,0.00035616,14]
[377552158,1754441457152,-500.0,0.00035616,14]
[377552159,1754441457162,-500.0,0.00035616,14]
[377552160,1754441457171,-1907.59,0.00035616,14]
[377552161,1754441457182,-500.0,0.00035616,14]
[377552162,1754441457192,-622.4304074,0.00035616,14]
[377552163,1754441457201,-1669.82,0.00035616,14]
[377552164,1754441457211,-423.84,0.00035616,14]
[377552165,1754441457220,-400.0,0.00035616,14]
[377552166,1754441457229,-400.0,0.00035616,14]
[377552167,1754441457239,-400.0,0.00035616,14]
[377552168,1754441457248,-400.0,0.00035616,14]
[377552169,1754441457259,-400.0,0.00035616,14]
[377552170,1754441457268,-400.0,0.00035616,14]
[377552171,1754441457278,-831.1,0.00035616,14]
[377552172,1754441457288,-400.0,0.00035616,14]
[377552173,1754441457299,-400.0,0.00035616,14]
[377552174,1754441457310,-400.0,0.00035616,14]
[377552175,1754441457320,-555.36,0.00035616,14]
[377552176,1754441457329,-400.0,0.00035616,14]
[377552177,1754441457339,-1783.94,0.00035616,14]
[377552178,1754441457348,-555.36,0.00035616,14]
[377552179,1754441457358,-555.36,0.00035616,14]
[377552180,1754441457368,-400.0,0.00035616,14]